bitfinex/quotes_BTCUSD_20250618
["timestamp","ask_amount","ask_price","bid_price","bid_amount"]
[1750261081991,0.00952027,105030.0,105020.0,0.42416489]
[1750261082203,0.02856135,105030.0,105020.0,0.40512181]
[1750261082419,0.02856135,105030.0,105020.0,0.41564362]
[1750261082650,0.02856135,105030.0,105020.0,0.43468679]
[1750261082885,0.01904072,105030.0,105020.0,0.43468679]
[1750261083103,0.21898313,105030.0,105020.0,0.001]
[1750261083319,0.2898212,105030.0,105020.0,0.001]
[1750261083528,4.01480396,105030.0,105020.0,0.001]
[1750261083741,4.32840396,105030.0,105020.0,0.001]
[1750261083962,4.36554163,105030.0,105020.0,0.001]
[1750261084191,0.0095248,104980.0,104960.0,0.45963593]
[1750261084408,0.01904987,104980.0,104970.0,0.13960176]
[1750261084625,0.22861338,104980.0,104960.0,0.655303]
[1750261084840,0.20005651,104970.0,104960.0,0.25892176]
[1750261085059,0.01905387,104960.0,104950.0,0.24345435]
[1750261085333,0.02858121,104960.0,104950.0,0.25888176]
[1750261085553,0.02858112,104960.0,104950.0,0.25935305]
[1750261085761,0.01905387,104960.0,104950.0,0.25935305]
[1750261086187,0.02858112,104960.0,104950.0,0.26335305]
[1750261086399,0.21913044,104960.0,104950.0,0.00047129]
[1750261086631,0.01905387,104960.0,104950.0,0.00047129]
[1750261086849,0.19051348,104980.0,104960.0,0.02858184]
[1750261086850,0.40003878,104980.0,104960.0,0.02858184]
[1750261087057,0.02857794,104970.0,104950.0,0.21009391]
[1750261087265,0.02857794,104970.0,104960.0,0.00952743]
[1750261087479,0.00952571,104970.0,104960.0,0.31537238]
[1750261087693,0.01905151,104970.0,104960.0,0.35055212]
[1750261087922,0.01905151,104970.0,104960.0,0.33149807]
[1750261088130,0.02857749,104970.0,104960.0,0.31537256]
[1750261088334,0.02857749,104970.0,104960.0,0.32489954]
[1750261088540,0.02857749,104970.0,104960.0,0.31537256]
[1750261088750,0.21905061,104980.0,104960.0,0.32489963]
[1750261088961,0.01905061,104980.0,104960.0,0.3163722]
[1750261089188,0.02857541,104980.0,104970.0,0.20005715]
[1750261089393,0.22857541,104980.0,104970.0,0.00952653]
[1750261089602,0.03810103,104980.0,104960.0,0.3163713]
[1750261089825,0.22861444,104980.0,104960.0,0.30684459]
[1750261090044,0.00952589,104970.0,104960.0,0.29631788]
[1750261090280,0.21911041,104970.0,104950.0,0.21962189]
[1750261090515,0.22863656,104970.0,104950.0,0.38214198]
[1750261090746,0.27409638,104980.0,104960.0,0.21912999]
[1750261090968,0.02857251,104990.0,104980.0,0.20002649]
[1750261091189,0.03741988,104990.0,104980.0,0.200038]
[1750261091404,0.00884737,104990.0,104980.0,0.21908824]
[1750261091615,0.25511393,105000.0,104980.0,0.22861304]
[1750261091887,0.0095239,104990.0,104980.0,0.21908843]
[1750261092093,0.02857206,104990.0,104980.0,0.20956326]
[1750261092310,0.03741943,104990.0,104980.0,0.20956326]
[1750261092539,0.21902609,105010.0,104990.0,0.20001886]
[1750261092767,0.00952308,105000.0,104990.0,0.20001904]
[1750261092990,0.01904634,105000.0,104990.0,0.21906801]
[1750261093463,0.02856978,105000.0,104990.0,0.20954366]
[1750261093688,0.0456037,105000.0,104990.0,0.22859263]
[1750261093894,0.0456037,105000.0,104990.0,0.21906819]
[1750261093895,0.05512705,105000.0,104990.0,0.21906819]
[1750261094111,0.02655736,105000.0,104990.0,0.2381168]
[1750261094323,0.01837544,105000.0,104990.0,0.22859209]
[1750261094547,0.01904616,105000.0,104990.0,0.22859218]
[1750261095178,0.01904616,105000.0,104990.0,0.21906792]
[1750261095395,0.02857251,104990.0,104970.0,0.2095834]
[1750261095621,0.03743068,104990.0,104980.0,0.20970485]
[1750261095846,0.04695521,104990.0,104980.0,0.20970494]
[1750261096078,0.25516648,104990.0,104980.0,0.00014132]
[1750261096300,3.95890117,104990.0,104980.0,0.00014132]
[1750261096517,4.29188898,104990.0,104980.0,0.00014132]
[1750261096742,4.32029258,104990.0,104980.0,0.00014132]
[1750261096977,4.30187291,104990.0,104980.0,0.00014132]
[1750261097222,4.35889347,104990.0,104980.0,0.00014132]
[1750261097444,0.20003791,104980.0,104970.0,0.001]
[1750261097664,4.03105376,104980.0,104970.0,0.001]
[1750261097875,0.02858339,104950.0,104940.0,0.27736561]
[1750261098085,0.02858339,104950.0,104940.0,0.27736552]
[1750261098349,0.03677226,104950.0,104940.0,0.29642321]
[1750261098568,0.01905523,104950.0,104940.0,0.30595192]
[1750261098778,0.01905523,104950.0,104940.0,0.29642321]
[1750261099006,0.01905523,104950.0,104940.0,0.30695192]
[1750261099239,0.22659248,104960.0,104950.0,0.20009509]
[1750261099448,0.26470031,104960.0,104950.0,0.20962352]
[1750261099693,0.00952762,104950.0,104940.0,0.36284852]
[1750261099914,0.26470103,104960.0,104940.0,0.29789367]
[1750261100124,0.2551736,104960.0,104940.0,0.29689367]
[1750261100360,0.25517279,104960.0,104950.0,0.20962334]
[1750261100600,0.25517279,104960.0,104950.0,0.22015141]
[1750261100834,0.23745585,104960.0,104950.0,0.22015141]
[1750261101054,0.24567661,104960.0,104950.0,0.2286793]
[1750261101324,0.25520341,104960.0,104950.0,0.21915141]
[1750261101465,0.24567661,104960.0,104950.0,0.22867921]
[1750261101916,0.01774774,104960.0,104950.0,0.32652561]
[1750261102238,0.02661995,104970.0,104960.0,0.22865697]
[1750261102444,0.01905024,104980.0,104970.0,0.20005706]
[1750261102647,0.02857577,104980.0,104960.0,0.28282927]
[1750261102897,0.01839742,104980.0,104970.0,0.2095834]
[1750261103113,0.06627689,104980.0,104970.0,0.22863572]
[1750261103331,0.04566729,104980.0,104970.0,0.22863572]
[1750261103540,0.04566729,104980.0,104970.0,0.2381617]
[1750261103753,0.03614062,104980.0,104970.0,0.2381617]
[1750261103963,0.00887191,104980.0,104970.0,0.31167248]
[1750261104173,0.02661573,104990.0,104980.0,0.20956326]
[1750261104394,0.12541916,105000.0,104980.0,0.2286135]
[1750261104618,0.27429716,105000.0,104980.0,0.22861258]
[1750261104858,0.17025149,105000.0,104980.0,0.20956308]
[1750261105089,0.08381983,105000.0,104990.0,0.19049433]
[1750261105291,0.09334336,105000.0,104980.0,0.20003791]
[1750261105511,0.04580253,105000.0,104990.0,0.19049433]
[1750261105719,0.24580253,105000.0,104990.0,0.19049433]
[1750261105934,0.05532606,105000.0,104990.0,0.19049433]
[1750261106351,0.30791546,105000.0,104980.0,0.19051247]
[1750261106560,0.02857215,104990.0,104980.0,0.19051247]
[1750261106773,0.03744309,104990.0,104980.0,0.19051247]
[1750261107234,0.03744309,104990.0,104980.0,0.200038]
[1750261107453,0.0742357,104990.0,104980.0,0.19051247]
[1750261107663,0.06471117,104990.0,104980.0,0.19051247]
[1750261107887,0.05518691,104990.0,104980.0,0.20956362]
[1750261108106,0.04566274,104990.0,104980.0,0.21908897]
[1750261108313,0.05518682,104990.0,104980.0,0.20103809]
[1750261108559,0.0742357,104990.0,104980.0,0.19151247]
[1750261108789,0.0742357,104990.0,104980.0,0.20103809]
[1750261108790,0.05518682,104990.0,104980.0,0.20103809]
[1750261109003,0.06471099,104990.0,104980.0,0.21056362]
[1750261109214,0.07423543,104990.0,104980.0,0.19151247]
[1750261109415,0.07423534,104990.0,104980.0,0.19151247]
[1750261109628,0.07423534,104990.0,104980.0,0.20103809]
[1750261110063,0.06471099,104990.0,104980.0,0.20103809]
[1750261110286,0.07423534,104990.0,104980.0,0.19151247]
[1750261110497,0.10061587,104990.0,104980.0,0.19151247]
[1750261111150,0.09109143,104990.0,104980.0,0.19151247]
[1750261111376,0.09109152,104990.0,104980.0,0.19151247]
[1750261111996,0.09109143,104990.0,104980.0,0.19151247]
[1750261112205,0.09109143,104990.0,104980.0,0.20103809]
[1750261112425,0.09109143,104990.0,104980.0,0.19151247]
[1750261112647,0.10061596,104990.0,104980.0,0.19151247]
[1750261112856,0.09109143,104990.0,104980.0,0.19151247]
[1750261113035,0.08156708,104990.0,104980.0,0.201038]
[1750261113450,0.10997146,104990.0,104980.0,0.201038]
[1750261113706,0.11949581,104990.0,104980.0,0.19151247]
[1750261113909,0.11949581,104990.0,104980.0,0.001]
[1750261114525,0.11953017,104990.0,104980.0,0.001]
[1750261114735,0.1290547,104990.0,104980.0,0.001]
[1750261114941,0.32907374,104990.0,104980.0,0.001]
[1750261115144,0.34226728,104990.0,104980.0,0.001]
[1750261115599,0.33336189,104990.0,104980.0,0.001]
[1750261115826,0.34226801,104990.0,104980.0,0.001]
[1750261116056,0.32320018,104990.0,104980.0,0.19151247]
[1750261116292,0.28729593,104990.0,104980.0,0.201038]
[1750261116537,0.10634472,104990.0,104980.0,0.19151247]
[1750261116751,0.0836271,104990.0,104980.0,0.20103809]
[1750261116955,0.09315181,104990.0,104980.0,0.001]
[1750261117202,0.1114446,104990.0,104980.0,0.001]
[1750261117442,0.13816629,104990.0,104980.0,0.01052553]
[1750261117718,0.14769091,104990.0,104980.0,0.001]
[1750261118200,0.33818596,104990.0,104980.0,0.001]
[1750261118412,0.36090358,104990.0,104980.0,0.001]
[1750261118857,0.30643614,104990.0,104980.0,0.001]
[1750261119104,0.11594181,104990.0,104980.0,0.001]
[1750261119323,0.09322419,104990.0,104980.0,0.001]
[1750261119550,0.24578943,104990.0,104980.0,0.001]
[1750261119772,0.07801272,104990.0,104980.0,0.001]
[1750261120004,0.04577112,104990.0,104980.0,0.20103791]
[1750261120259,0.02672287,104990.0,104980.0,0.32695518]
[1750261120474,0.02285876,105000.0,104990.0,0.21906738]
[1750261120699,0.00014114,105000.0,104990.0,0.28296738]
[1750261122476,0.00966413,105000.0,104990.0,0.28296738]
[1750261122743,0.00014114,105000.0,104990.0,0.28296738]
[1750261123230,0.00014114,105000.0,104990.0,0.28496738]
[1750261123639,0.00014114,105000.0,104990.0,0.28696738]
[1750261124318,0.00966413,105000.0,104990.0,0.28696738]
[1750261124566,0.06126924,105000.0,104990.0,0.44900774]
[1750261124771,0.03638115,105000.0,104990.0,0.45853191]
[1750261124989,0.01856913,105000.0,104990.0,0.42805599]
[1750261125219,0.00966413,105000.0,104990.0,0.42805599]
[1750261125440,0.00014114,105000.0,104990.0,0.53382237]
[1750261125650,0.00014114,105000.0,104990.0,0.60625585]
[1750261125862,0.00014114,105000.0,104990.0,0.65065585]
[1750261126076,0.00014114,105000.0,104990.0,0.6651967]
[1750261126721,0.00014114,105000.0,104990.0,0.6631967]
[1750261126941,0.00014114,105000.0,104990.0,0.6611967]
[1750261127146,0.00014114,105000.0,104990.0,0.6651967]
[1750261127356,0.00014114,105000.0,104990.0,0.6691967]
[1750261127583,0.00014114,105000.0,104990.0,0.6651967]
[1750261127796,0.00014114,105000.0,104990.0,0.6701967]
[1750261128245,0.00014114,105000.0,104990.0,0.6661967]
[1750261128469,0.00014114,105000.0,104990.0,0.6721967]
[1750261128902,0.00014114,105000.0,104990.0,0.59976322]
[1750261130655,0.00014114,105000.0,104990.0,0.39332322]
[1750261130871,0.00966413,105000.0,104990.0,0.2230681]
[1750261131079,0.24166448,105000.0,104990.0,0.011]
[1750261131293,0.31423086,105000.0,104990.0,0.011]
[1750261131508,0.33702411,105000.0,104990.0,0.011]
[1750261131727,0.30502411,105000.0,104990.0,0.011]
[1750261131933,0.30502411,105000.0,104990.0,0.02052471]
[1750261131934,0.26866648,105000.0,104990.0,0.02052471]
[1750261132153,0.07819028,105000.0,104990.0,0.006]
[1750261132361,0.05539703,105000.0,104990.0,0.006]
[1750261132779,0.05539703,105000.0,104990.0,0.002]
[1750261132990,0.29513119,105000.0,104990.0,0.004]
[1750261133214,0.31792444,105000.0,104990.0,0.004]
[1750261133435,4.06648367,105000.0,104990.0,0.004]
[1750261133617,4.09491092,105000.0,104990.0,0.004]
[1750261134066,4.06181092,105000.0,104990.0,0.004]
[1750261134263,0.46596992,105000.0,104990.0,0.002]
[1750261134712,0.08756966,105000.0,104990.0,0.002]
[1750261134923,0.09334682,105000.0,104990.0,0.002]
[1750261135131,0.23637229,105000.0,104980.0,0.20956283]
[1750261135335,0.00952417,104990.0,104980.0,0.20003757]
[1750261135587,0.01904843,104990.0,104980.0,0.20956283]
[1750261135793,0.05695493,104990.0,104980.0,0.20956292]
[1750261135996,0.08366274,104990.0,104980.0,0.21908818]
[1750261136364,0.0362318,104990.0,104980.0,0.22861325]
[1750261136621,0.01841851,104990.0,104980.0,0.23813823]
[1750261136888,0.00952399,104990.0,104980.0,0.23813823]
[1750261137104,0.01904816,104990.0,104980.0,0.22961335]
[1750261137329,0.02857251,104990.0,104980.0,0.21056292]
[1750261137528,0.04699147,104990.0,104980.0,0.21056301]
[1750261137657,0.096419,104990.0,104980.0,0.21056301]
[1750261137862,0.10594362,104990.0,104980.0,0.001]
[1750261138136,0.26786544,104990.0,104980.0,0.001]
[1750261138338,0.29065869,104990.0,104980.0,0.001]
[1750261138545,0.15051817,104990.0,104980.0,0.001]
[1750261138755,0.07675688,104990.0,104980.0,0.001]
[1750261139603,0.19049433,104990.0,104980.0,0.001]
[1750261139741,0.01904897,104990.0,104980.0,0.001]
[1750261139935,0.03809758,104990.0,104980.0,0.001]
[1750261140157,0.22859191,104990.0,104980.0,0.001]
[1750261140798,0.03809749,104990.0,104980.0,0.001]
[1750261140993,0.22859182,104990.0,104980.0,0.001]
[1750261141204,0.03809749,104990.0,104980.0,0.001]
[1750261141414,0.26144424,104990.0,104980.0,0.001]
[1750261141630,0.28423749,104990.0,104980.0,0.001]
[1750261142273,0.3925784,104990.0,104980.0,0.001]
[1750261142476,3.9884194,104990.0,104980.0,0.001]
[1750261142682,0.35682638,104990.0,104980.0,0.001]
[1750261142886,0.05104123,104990.0,104980.0,0.19151247]
[1750261143089,0.028633,105000.0,104990.0,0.2095433]
[1750261143333,0.02856714,105010.0,104990.0,0.28208896]
[1750261143536,0.02856751,105010.0,104990.0,0.33536578]
[1750261143786,0.02856706,105010.0,105000.0,0.19999999]
[1750261143989,0.00952208,105010.0,105000.0,0.2095237]
[1750261144189,0.02856678,105010.0,105000.0,0.2095237]
[1750261144435,0.01904434,105010.0,105000.0,0.21904696]
[1750261144653,0.01904434,105010.0,105000.0,0.21904714]
[1750261144870,0.00952208,105010.0,105000.0,0.22857049]
[1750261145077,0.01904434,105010.0,105000.0,0.28234714]
[1750261145283,0.01904434,105010.0,105000.0,0.29187058]
[1750261145493,0.03808932,105010.0,105000.0,0.2728237]
[1750261145709,0.03808932,105010.0,105000.0,0.19999999]
[1750261146131,0.02856669,105010.0,105000.0,0.2095237]
[1750261146340,0.03808922,105010.0,105000.0,0.21904732]
[1750261146551,0.02856669,105010.0,105000.0,0.22857085]
[1750261146753,0.03808932,105010.0,105000.0,0.2095237]
[1750261146966,0.03808922,105010.0,105000.0,0.2095237]
[1750261147179,0.01904434,105010.0,105000.0,0.28004714]
[1750261147396,0.05135859,105020.0,105000.0,0.28004714]
[1750261147609,0.22856534,105020.0,105000.0,0.2895704]
[1750261147823,0.41900528,105020.0,105000.0,0.34564948]
[1750261148034,0.00952208,105010.0,105000.0,0.2800466]
[1750261148442,0.00952208,105010.0,105000.0,0.28004669]
[1750261148699,0.02856678,105010.0,105000.0,0.2609999]
[1750261148918,0.02856678,105010.0,105000.0,0.26099999]
[1750261149132,0.01904434,105010.0,105000.0,0.2705237]
[1750261149344,0.00952217,105010.0,105000.0,0.28004714]
[1750261149601,0.01904317,105020.0,105000.0,0.2895704]
[1750261149819,0.10945387,105020.0,105000.0,0.28004714]
[1750261150040,0.09993188,105020.0,105000.0,0.2895704]
[1750261150249,0.04744755,105020.0,105010.0,0.19045805]
[1750261150458,0.24622196,105020.0,105010.0,0.19045805]
[1750261150679,0.26465211,105020.0,105010.0,0.19045805]
[1750261150935,0.05904079,105020.0,105010.0,0.24932611]
[1750261151143,0.0457689,105020.0,105010.0,0.27060376]
[1750261151354,0.07927459,105020.0,105010.0,0.22075805]
[1750261151567,0.08879604,105020.0,105010.0,0.23028086]
[1750261151992,0.14653243,105030.0,105010.0,0.22075805]
[1750261152243,0.00952145,105020.0,105010.0,0.23028095]
[1750261152457,0.14276787,105030.0,105010.0,0.25884892]
[1750261152675,0.01904262,105020.0,105010.0,0.23028095]
[1750261152890,0.01904262,105020.0,105010.0,0.22075805]
[1750261153101,0.02856425,105020.0,105010.0,0.22075805]
[1750261153519,0.01904262,105020.0,105010.0,0.22075805]
[1750261153943,0.21904198,105030.0,105010.0,0.26078095]
[1750261154154,0.20946469,105030.0,105010.0,0.27030376]
[1750261154364,0.20946428,105030.0,105010.0,0.26078095]
[1750261154574,0.01908859,105030.0,105010.0,0.27030376]
[1750261154826,0.00952117,105020.0,105010.0,0.25125805]
[1750261155046,0.01904253,105020.0,105010.0,0.22075805]
[1750261155258,0.01904253,105020.0,105010.0,0.19045805]
[1750261155469,0.00952117,105020.0,105010.0,0.19045805]
[1750261155677,0.04094597,105020.0,105010.0,0.19045805]
[1750261155892,0.02856398,105020.0,105010.0,0.19045805]
[1750261156999,0.01904244,105020.0,105010.0,0.19045805]
[1750261157217,0.01904244,105020.0,105010.0,0.19998086]
[1750261157435,0.02856389,105020.0,105010.0,0.19045805]
[1750261157649,0.25138165,105020.0,105000.0,0.25377619]
[1750261157838,0.00952217,105010.0,105000.0,0.24012352]
[1750261158086,0.2837481,105020.0,105000.0,0.2305999]
[1750261158298,0.2742262,105020.0,105000.0,0.24964705]
[1750261158521,0.23232744,105020.0,105010.0,0.24010358]
[1750261158783,0.01908805,105030.0,105020.0,0.19043991]
[1750261158994,0.21908805,105030.0,105020.0,0.19043991]
[1750261159212,0.20956751,105030.0,105020.0,0.19043991]
[1750261159421,0.20956742,105030.0,105020.0,0.19996181]
[1750261159641,0.22860859,105030.0,105020.0,0.19043991]
[1750261159848,0.23812958,105030.0,105010.0,0.28232611]
[1750261160079,0.23812958,105030.0,105010.0,0.29184855]
[1750261160289,0.22860859,105030.0,105010.0,0.29184855]
[1750261160506,0.3737482,105030.0,105010.0,0.25375805]
[1750261160717,0.03237031,105030.0,105020.0,0.22293991]
[1750261160929,0.20956751,105030.0,105020.0,0.25523991]
[1750261161358,0.20004706,105030.0,105020.0,0.2647619]
[1750261161575,0.20004706,105030.0,105020.0,0.28380534]
[1750261161998,0.20004706,105030.0,105020.0,0.2742838]
[1750261162208,0.20004706,105030.0,105020.0,0.29332733]
[1750261162666,0.20004706,105030.0,105020.0,0.30284887]
[1750261162874,0.20004706,105030.0,105020.0,0.28380534]
[1750261163086,0.20004706,105030.0,105020.0,0.33123168]
[1750261163288,0.20956733,105030.0,105020.0,0.33123168]
[1750261163491,0.20956733,105030.0,105020.0,0.27428362]
[1750261163946,0.2362814,105030.0,105020.0,0.26476181]
[1750261164169,0.25532257,105030.0,105020.0,0.26476181]
[1750261164400,0.25532257,105030.0,105020.0,0.27428362]
[1750261164401,0.27812537,105030.0,105020.0,0.27428362]
[1750261164652,0.27812528,105030.0,105020.0,0.27428362]
[1750261164925,0.28764609,105030.0,105020.0,0.0648]
[1750261165151,0.47806859,105030.0,105020.0,0.0648]
[1750261165367,0.2686051,105030.0,105020.0,0.26476172]
[1750261165589,0.24956393,105030.0,105020.0,0.27428335]
[1750261166007,0.22676073,105030.0,105020.0,0.27428335]
[1750261166233,0.236281,105030.0,105020.0,0.27428335]
[1750261166487,0.236281,105030.0,105020.0,0.26476172]
[1750261166716,0.26860434,105030.0,105020.0,0.2647619]
[1750261166899,0.26860425,105030.0,105020.0,0.28380561]
[1750261167144,0.2590838,105030.0,105020.0,0.30284896]
[1750261167358,0.24956353,105030.0,105020.0,0.51841912]
[1750261167567,0.04956353,105030.0,105020.0,0.51941858]
[1750261167789,0.02676073,105030.0,105020.0,0.47008788]
[1750261168006,4.706e-05,105030.0,105020.0,0.47008788]
[1750261168222,4.706e-05,105030.0,105020.0,0.56632964]
[1750261169310,4.706e-05,105030.0,105020.0,0.61292964]
[1750261169731,4.706e-05,105030.0,105020.0,0.69326841]
[1750261170373,4.706e-05,105030.0,105020.0,0.69226841]
[1750261170582,4.706e-05,105030.0,105020.0,0.61372964]
[1750261170791,4.706e-05,105030.0,105020.0,0.40508964]
[1750261171013,4.706e-05,105030.0,105020.0,0.61572964]
[1750261171224,4.706e-05,105030.0,105020.0,0.61172964]
[1750261171438,4.706e-05,105030.0,105020.0,0.62272964]
[1750261171881,4.706e-05,105030.0,105020.0,0.26123991]
[1750261172101,0.21908805,105030.0,105020.0,0.36235991]
[1750261172313,0.2457966,105030.0,105020.0,0.006]
[1750261172527,0.28763364,105030.0,105020.0,0.006]
[1750261172741,0.27811283,105030.0,105010.0,0.4664299]
[1750261172955,0.28763346,105030.0,105010.0,0.45690709]
[1750261173170,0.29715436,105030.0,105020.0,0.01352199]
[1750261173386,0.34876562,105030.0,105020.0,0.166]
[1750261173605,0.34876562,105030.0,105020.0,0.172]
[1750261173606,0.29715508,105030.0,105020.0,0.172]
[1750261173818,0.2781131,105030.0,105020.0,0.37196181]
[1750261174066,0.2596886,105030.0,105020.0,0.38500534]
[1750261174297,0.26859713,105030.0,105020.0,0.38500534]
[1750261174514,0.51824663,105030.0,105020.0,0.002]
[1750261174741,0.53728861,105030.0,105020.0,0.002]
[1750261174953,0.32776816,105030.0,105020.0,0.002]
[1750261175418,0.00952117,105020.0,105010.0,0.46622999]
[1750261175629,0.47806125,105030.0,105020.0,0.001]
[1750261175839,0.47806125,105030.0,105020.0,0.003]
[1750261176051,0.28763947,105030.0,105020.0,0.003]
[1750261176269,0.47806125,105030.0,105020.0,0.003]
[1750261176482,0.08763947,105030.0,105020.0,0.003]
[1750261176698,0.25532261,105030.0,105020.0,0.01252199]
[1750261176928,0.27813636,105030.0,105020.0,0.01152199]
[1750261177341,0.26861501,105030.0,105020.0,0.2019619]
[1750261177552,0.28765663,105030.0,105020.0,0.2114838]
[1750261177761,0.28765663,105030.0,105020.0,0.01152199]
[1750261177972,0.27813573,105030.0,105020.0,0.21248371]
[1750261178395,0.28765663,105030.0,105020.0,0.2124838]
[1750261179029,0.27813573,105030.0,105020.0,0.2124838]
[1750261179240,0.04573014,105030.0,105020.0,0.23152733]
[1750261179449,0.22293436,105030.0,105020.0,0.23152733]
[1750261179664,0.2,105030.0,105020.0,0.28039853]
[1750261179874,0.00952027,105030.0,105020.0,0.35211935]
[1750261180087,0.20952027,105030.0,105020.0,0.35211935]
[1750261180308,0.2,105030.0,105020.0,0.35211935]
[1750261180504,0.00952027,105030.0,105020.0,0.35211935]
[1750261180731,0.20952027,105030.0,105020.0,0.35211935]
[1750261180939,0.21904081,105030.0,105020.0,0.34259808]
[1750261181144,0.21904081,105030.0,105020.0,0.34259817]
[1750261181366,0.21904063,105030.0,105020.0,0.35211926]
[1750261181629,3.595841,105030.0,105020.0,0.35211881]
[1750261181868,0.02279578,105030.0,105020.0,0.35211881]
[1750261182078,3.595841,105030.0,105020.0,0.35211881]
[1750261182292,3.41863678,105030.0,105020.0,0.35211881]
[1750261182502,0.02279578,105030.0,105020.0,0.30324761]
[1750261182713,5e-05,105040.0,105020.0,0.33728937]
[1750261182939,5e-05,105040.0,105030.0,0.44958394]
[1750261183195,5e-05,105040.0,105030.0,0.5458257]
[1750261183409,5e-05,105040.0,105030.0,0.62165652]
[1750261184271,5e-05,105040.0,105030.0,0.5458257]
[1750261184969,5e-05,105040.0,105030.0,0.5468257]
[1750261189467,5e-05,105040.0,105030.0,0.55634624]
[1750261192730,5e-05,105040.0,105030.0,0.60294624]
[1750261194268,5e-05,105040.0,105030.0,0.61748709]
[1750261194519,5e-05,105040.0,105030.0,0.70209541]
[1750261194937,5e-05,105040.0,105030.0,0.49009541]
[1750261195154,5e-05,105040.0,105030.0,0.70297541]
[1750261195840,5e-05,105040.0,105030.0,0.70597541]
[1750261196050,5e-05,105040.0,105030.0,0.70997541]
[1750261197352,5e-05,105040.0,105030.0,0.49709541]
[1750261197572,5e-05,105040.0,105030.0,0.70997541]
[1750261198199,5e-05,105040.0,105030.0,0.49709541]
[1750261198419,5e-05,105040.0,105030.0,0.70597541]
[1750261198835,5e-05,105040.0,105030.0,0.71197541]
[1750261199242,5e-05,105040.0,105030.0,0.70797541]
[1750261199455,5e-05,105040.0,105030.0,0.71297541]
[1750261200282,5e-05,105040.0,105030.0,0.50009541]
[1750261200489,5e-05,105040.0,105030.0,0.62820709]
[1750261201785,5e-05,105040.0,105030.0,0.41548709]
[1750261202030,5e-05,105040.0,105030.0,0.40094624]
[1750261202286,5e-05,105040.0,105030.0,0.61366624]
[1750261202547,5e-05,105040.0,105030.0,0.36824624]
[1750261202798,0.01908899,105040.0,105030.0,0.20142178]
[1750261203038,0.0190889,105040.0,105030.0,0.20494277]
[1750261203291,0.0690277,105040.0,105030.0,0.19042178]
[1750261203563,0.04764825,105040.0,105030.0,0.36450178]
[1750261203775,0.04702884,105040.0,105030.0,0.36446178]
[1750261204020,0.05654893,105040.0,105030.0,0.17004]
[1750261204258,0.05654893,105040.0,105030.0,0.36246178]
[1750261204259,0.07902884,105040.0,105030.0,0.36246178]
[1750261204495,0.04702884,105040.0,105030.0,0.36242178]
[1750261204738,0.03750893,105040.0,105030.0,0.37194277]
[1750261205205,0.04702884,105040.0,105030.0,0.35842178]
[1750261205438,0.07435462,105040.0,105030.0,0.16996]
[1750261205675,0.06483444,105040.0,105030.0,0.36038178]
[1750261205904,0.09683444,105040.0,105030.0,0.36038178]
[1750261206173,0.05531453,105040.0,105030.0,0.36990286]
[1750261206432,0.02675564,105040.0,105030.0,0.38894475]
[1750261206684,5e-05,105040.0,105030.0,0.39846538]
[1750261206901,0.00956954,105040.0,105030.0,0.36986286]
[1750261207113,5e-05,105040.0,105030.0,0.38890448]
[1750261207319,5e-05,105040.0,105030.0,0.39842511]
[1750261207531,0.00956945,105040.0,105030.0,0.38890448]
[1750261207997,5e-05,105040.0,105030.0,0.39842511]
[1750261208208,0.00956945,105040.0,105030.0,0.39842511]
[1750261208418,0.00956945,105040.0,105030.0,0.38890448]
[1750261208622,0.01908908,105040.0,105030.0,0.38890457]
[1750261208840,0.09166546,105050.0,105030.0,0.37938376]
[1750261209091,0.45928298,105050.0,105030.0,0.37938376]
[1750261209330,0.00951963,105040.0,105030.0,0.38890457]
[1750261209570,0.01903899,105040.0,105030.0,0.38890457]
[1750261209804,0.00951945,105040.0,105030.0,0.38690466]
[1750261210039,0.00951945,105040.0,105030.0,0.39642538]
[1750261210277,0.00951936,105040.0,105030.0,0.40394601]
[1750261210501,0.28208062,105050.0,105030.0,0.45386352]
[1750261210731,0.09169406,105050.0,105030.0,0.46338406]
[1750261210949,0.26889642,105050.0,105030.0,0.46338406]
[1750261211206,0.00951954,105040.0,105030.0,0.3849043]
[1750261211405,0.00951945,105040.0,105030.0,0.36586277]
[1750261211631,0.00951945,105040.0,105030.0,0.36786277]
[1750261211850,0.01903908,105040.0,105030.0,0.38790448]
[1750261212059,0.00951945,105040.0,105030.0,0.38790448]
[1750261212278,0.00951945,105040.0,105030.0,0.3964252]
[1750261212500,0.2820942,105050.0,105030.0,0.40394538]
[1750261212712,0.29170835,105050.0,105030.0,0.39842448]
[1750261213119,0.00951945,105040.0,105030.0,0.37938367]
[1750261213315,0.26889642,105050.0,105030.0,0.39842502]
[1750261213587,0.27842612,105050.0,105030.0,0.40594556]
[1750261213827,0.27842612,105050.0,105030.0,0.39642502]
[1750261213828,0.27842603,105050.0,105030.0,0.39642502]
[1750261214045,0.06890685,105050.0,105040.0,0.19040365]
[1750261214260,0.26881181,105050.0,105030.0,0.38490457]
[1750261214476,0.26881181,105050.0,105030.0,0.36586286]
[1750261214695,0.07842612,105050.0,105030.0,0.36586286]
[1750261214908,0.06890685,105050.0,105030.0,0.38590457]
[1750261215119,0.10123658,105050.0,105030.0,0.38590457]
[1750261215330,0.00951936,105040.0,105030.0,0.37638385]
[1750261215791,0.28332064,105050.0,105030.0,0.38590466]
[1750261216002,0.09293378,105050.0,105030.0,0.40494601]
[1750261216222,0.09293378,105050.0,105030.0,0.40394601]
[1750261216455,0.31469011,105050.0,105030.0,0.39642538]
[1750261216659,0.31469011,105050.0,105030.0,0.38690466]
[1750261216866,0.12430409,105050.0,105030.0,0.39642538]
[1750261217072,0.11478482,105050.0,105030.0,0.40594547]
[1750261217251,0.00951936,105040.0,105030.0,0.3869043]
[1750261217387,0.00951936,105040.0,105030.0,0.39842493]
[1750261217844,0.00951936,105040.0,105030.0,0.37938358]
[1750261218137,0.0190389,105040.0,105030.0,0.37938358]
[1750261218338,0.00951936,105040.0,105030.0,0.39442493]
[1750261218549,0.01903899,105040.0,105030.0,0.21046367]
[1750261218762,0.25548543,105040.0,105030.0,0.003]
[1750261218989,0.49964644,105040.0,105030.0,0.002]
[1750261219437,0.49964644,105040.0,105030.0,0.004]
[1750261219842,0.49964644,105040.0,105030.0,0.002]
[1750261220326,0.32698833,105040.0,105020.0,0.23804851]
[1750261220531,0.22734116,105040.0,105030.0,0.19994268]
[1750261220734,0.24638051,105040.0,105030.0,0.19994277]
[1750261220928,0.20951945,105040.0,105030.0,0.20946367]
[1750261221131,0.24576781,105040.0,105030.0,0.20946367]
[1750261221360,0.24576781,105040.0,105030.0,0.21898439]
[1750261221361,0.25904656,105040.0,105030.0,0.21898439]
[1750261221982,0.25904656,105040.0,105030.0,0.20946367]
[1750261222185,0.25904656,105040.0,105030.0,0.2285052]
[1750261222391,0.24952711,105040.0,105030.0,0.2285052]
[1750261222564,0.02672873,105040.0,105030.0,0.30312565]
[1750261222809,0.00956551,105050.0,105040.0,0.24154374]